[Event "Early-Titled-Tuesday-Blitz-April-02-2024"]
[Site "Chess.com"]
[Date "2024.04.02"]
[Round "8"]
[White "Revan_2002"]
[Black "vladislavkovalev"]
[Result "1-0"]
[WhiteElo "2735"]
[BlackElo "2876"]
[TimeControl "180+1"]
[EndTime "9:29:26 PDT"]
[Termination "Revan_2002 won by resignation"]

1. d4 {[%clk 0:03:00.9]} 1... Nf6 {[%clk 0:02:58.6]} 2. c4 {[%clk 0:03:01.3]}
2... e6 {[%clk 0:02:58.9]} 3. Nf3 {[%clk 0:03:00]} 3... b6 {[%clk 0:02:58.3]} 4.
a3 {[%clk 0:02:57.9]} 4... Bb7 {[%clk 0:02:57]} 5. Nc3 {[%clk 0:02:58.4]} 5...
d5 {[%clk 0:02:54.6]} 6. cxd5 {[%clk 0:02:59.3]} 6... exd5 {[%clk 0:02:54.4]} 7.
Bg5 {[%clk 0:02:54.2]} 7... h6 {[%clk 0:02:54.7]} 8. Bxf6 {[%clk 0:02:45.4]}
8... Qxf6 {[%clk 0:02:55.6]} 9. g3 {[%clk 0:02:36.8]} 9... Be7 {[%clk
0:02:53.4]} 10. Bg2 {[%clk 0:02:36.7]} 10... O-O {[%clk 0:02:53.7]} 11. O-O
{[%clk 0:02:37.3]} 11... Nd7 {[%clk 0:02:51.6]} 12. Rc1 {[%clk 0:02:32.1]} 12...
c6 {[%clk 0:02:51.7]} 13. e4 {[%clk 0:02:25]} 13... dxe4 {[%clk 0:02:51.5]} 14.
Nxe4 {[%clk 0:02:25.9]} 14... Qg6 {[%clk 0:02:48.5]} 15. Re1 {[%clk 0:02:25.9]}
15... Rfe8 {[%clk 0:02:48.7]} 16. Qb3 {[%clk 0:02:17.6]} 16... Bf8 {[%clk
0:02:30.7]} 17. Nh4 {[%clk 0:02:14.3]} 17... Qe6 {[%clk 0:02:17.9]} 18. Qxe6
{[%clk 0:02:12.4]} 18... Rxe6 {[%clk 0:02:18.8]} 19. Bh3 {[%clk 0:02:11.3]}
19... Rxe4 {[%clk 0:01:44.8]} 20. Rxe4 {[%clk 0:02:09.8]} 20... Nf6 {[%clk
0:01:45.5]} 21. Ree1 {[%clk 0:01:57.6]} 21... Rd8 {[%clk 0:01:46.1]} 22. Bg2
{[%clk 0:01:57.3]} 22... Rxd4 {[%clk 0:01:46.1]} 23. Bxc6 {[%clk 0:01:54]} 23...
Bxc6 {[%clk 0:01:31.3]} 24. Rxc6 {[%clk 0:01:54.9]} 24... Rd2 {[%clk 0:01:32.2]}
25. b4 {[%clk 0:01:38.6]} 25... Ra2 {[%clk 0:01:32.3]} 26. Rd1 {[%clk
0:00:53.7]} 26... Rxa3 {[%clk 0:01:23.9]} 27. Rd8 {[%clk 0:00:51.5]} 27... Nh7
{[%clk 0:01:03.9]} 28. Nf5 {[%clk 0:00:37.5]} 28... g6 {[%clk 0:01:04.4]} 29.
Ne3 {[%clk 0:00:20.8]} 29... Kg7 {[%clk 0:00:54.9]} 30. Nd5 {[%clk 0:00:20.4]}
30... Rd3 {[%clk 0:00:52.3]} 31. Rd7 {[%clk 0:00:20.4]} 31... Ng5 {[%clk
0:00:23.1]} 32. Kg2 {[%clk 0:00:20.6]} 32... Ne6 {[%clk 0:00:20.5]} 33. Rxe6
{[%clk 0:00:18.6]} 33... Rxd5 {[%clk 0:00:20.8]} 34. Rxd5 {[%clk 0:00:16.7]}
34... fxe6 {[%clk 0:00:21.7]} 35. Rd7+ {[%clk 0:00:17]} 35... Kf6 {[%clk
0:00:22.4]} 36. b5 {[%clk 0:00:17.5]} 36... Bc5 {[%clk 0:00:21.7]} 37. Rxa7
{[%clk 0:00:13.2]} 37... g5 {[%clk 0:00:22.3]} 38. g4 {[%clk 0:00:10.7]} 38...
Kg6 {[%clk 0:00:22]} 39. f3 {[%clk 0:00:08]} 39... h5 {[%clk 0:00:22.6]} 40. h3
{[%clk 0:00:07.5]} 40... h4 {[%clk 0:00:22.5]} 41. Kf1 {[%clk 0:00:07.7]} 41...
Kf6 {[%clk 0:00:22.8]} 42. Ke2 {[%clk 0:00:05.2]} 42... Ke5 {[%clk 0:00:23.6]}
43. Rf7 {[%clk 0:00:05.7]} 43... Bd4 {[%clk 0:00:23.9]} 44. Kd3 {[%clk
0:00:05.8]} 44... Bc5 {[%clk 0:00:24.6]} 45. Ke2 {[%clk 0:00:04.1]} 45... Bd4
{[%clk 0:00:24.9]} 46. f4+ {[%clk 0:00:03.8]} 46... gxf4 {[%clk 0:00:25]} 47.
Kf3 {[%clk 0:00:04.4]} 47... Kd5 {[%clk 0:00:20.1]} 48. g5 {[%clk 0:00:04.7]}
48... e5 {[%clk 0:00:20.5]} 49. g6 {[%clk 0:00:05.1]} 49... Ke6 {[%clk
0:00:15.9]} 50. Ke4 {[%clk 0:00:05.7]} 50... Bb2 {[%clk 0:00:04.7]} 51. Rf5
{[%clk 0:00:05.9]} 51... f3 {[%clk 0:00:05.6]} 52. Rxf3 {[%clk 0:00:05.3]} 1-0

[Event "Early-Titled-Tuesday-Blitz-April-02-2024"]
[Site "Chess.com"]
[Date "2024.04.02"]
[Round "8"]
[White "JimDiGrease"]
[Black "Hikaru"]
[Result "0-1"]
[WhiteElo "2966"]
[BlackElo "3261"]
[TimeControl "180+1"]
[EndTime "9:29:27 PDT"]
[Termination "Hikaru won on time"]

1. d4 {[%clk 0:03:00.9]} 1... c5 {[%clk 0:02:56.3]} 2. d5 {[%clk 0:03:00.5]}
2... Nf6 {[%clk 0:02:56.1]} 3. c4 {[%clk 0:02:59.5]} 3... e5 {[%clk 0:02:54.7]}
4. Nc3 {[%clk 0:02:57.3]} 4... d6 {[%clk 0:02:54.9]} 5. e4 {[%clk 0:02:57.9]}
5... g6 {[%clk 0:02:54.7]} 6. Be2 {[%clk 0:02:36.9]} 6... Bg7 {[%clk 0:02:54.4]}
7. h4 {[%clk 0:02:36.6]} 7... h5 {[%clk 0:02:44.2]} 8. Bg5 {[%clk 0:02:36]} 8...
a6 {[%clk 0:02:43.8]} 9. Qd2 {[%clk 0:02:29.1]} 9... Qa5 {[%clk 0:02:42.2]} 10.
Nh3 {[%clk 0:02:21.4]} 10... Nbd7 {[%clk 0:02:41.4]} 11. f3 {[%clk 0:02:17.6]}
11... b5 {[%clk 0:02:34.3]} 12. cxb5 {[%clk 0:02:13.5]} 12... O-O {[%clk
0:02:28.9]} 13. Nf2 {[%clk 0:02:09.4]} 13... axb5 {[%clk 0:02:09.7]} 14. Nxb5
{[%clk 0:02:07.4]} 14... Qb6 {[%clk 0:02:10.3]} 15. Be3 {[%clk 0:02:04.6]} 15...
Ba6 {[%clk 0:02:07.7]} 16. a4 {[%clk 0:01:55.5]} 16... Rfb8 {[%clk 0:01:38.6]}
17. O-O {[%clk 0:01:55]} 17... Ne8 {[%clk 0:01:38.6]} 18. b4 {[%clk 0:01:49.1]}
18... Qd8 {[%clk 0:01:37.9]} 19. bxc5 {[%clk 0:01:35.4]} 19... Nxc5 {[%clk
0:01:32.8]} 20. Rfb1 {[%clk 0:01:09.9]} 20... Rb7 {[%clk 0:00:39]} 21. Bg5
{[%clk 0:00:20]} 21... Bf6 {[%clk 0:00:34.1]} 22. Bxf6 {[%clk 0:00:13]} 22...
Nxf6 {[%clk 0:00:35]} 23. Nd3 {[%clk 0:00:10.4]} 23... Nxd3 {[%clk 0:00:25]} 24.
Bxd3 {[%clk 0:00:11.3]} 24... Rb6 {[%clk 0:00:22.5]} 25. Nc3 {[%clk 0:00:10.9]}
25... Nd7 {[%clk 0:00:22.5]} 26. Bxa6 {[%clk 0:00:09.5]} 26... Rbxa6 {[%clk
0:00:22.4]} 27. Qg5 {[%clk 0:00:06.3]} 27... Qc7 {[%clk 0:00:18.7]} 28. Nb5
{[%clk 0:00:06.3]} 28... Qb6+ {[%clk 0:00:17.8]} 29. Kh2 {[%clk 0:00:06.4]}
29... Nc5 {[%clk 0:00:18.3]} 30. Qe7 {[%clk 0:00:06.2]} 30... Qd8 {[%clk
0:00:13.9]} 31. Qxd8+ {[%clk 0:00:06]} 31... Rxd8 {[%clk 0:00:14.8]} 32. a5
{[%clk 0:00:06.3]} 32... Rb8 {[%clk 0:00:14]} 33. Nc7 {[%clk 0:00:04.6]} 33...
Rxb1 {[%clk 0:00:13.7]} 34. Rxb1 {[%clk 0:00:05.5]} 34... Rxa5 {[%clk
0:00:14.2]} 35. Rb8+ {[%clk 0:00:06.3]} 35... Kh7 {[%clk 0:00:14.7]} 36. Rd8
{[%clk 0:00:05.4]} 36... Nd3 {[%clk 0:00:11.8]} 37. Ne8 {[%clk 0:00:04.8]} 37...
Ra2 {[%clk 0:00:07.9]} 38. Rd7 {[%clk 0:00:03.8]} 38... Nf4 {[%clk 0:00:07.5]}
39. Rxf7+ {[%clk 0:00:02.7]} 39... Kg8 {[%clk 0:00:07.8]} 40. Nxd6 {[%clk
0:00:03.6]} 40... Rxg2+ {[%clk 0:00:07.7]} 41. Kh1 {[%clk 0:00:04.1]} 41... Rg3
{[%clk 0:00:07.2]} 42. Re7 {[%clk 0:00:03.9]} 42... Rxf3 {[%clk 0:00:06.8]} 43.
Rxe5 {[%clk 0:00:02.7]} 43... Rh3+ {[%clk 0:00:06.8]} 44. Kg1 {[%clk 0:00:03.2]}
44... Rxh4 {[%clk 0:00:07.7]} 45. Re8+ {[%clk 0:00:02.5]} 45... Kg7 {[%clk
0:00:08.2]} 46. Re7+ {[%clk 0:00:02.1]} 46... Kf6 {[%clk 0:00:08.6]} 47. Nc8
{[%clk 0:00:02.8]} 47... Rg4+ {[%clk 0:00:08.5]} 48. Kf1 {[%clk 0:00:02.4]}
48... Nd3 {[%clk 0:00:05.7]} 49. d6 {[%clk 0:00:02.9]} 49... Nc5 {[%clk
0:00:03.9]} 50. e5+ {[%clk 0:00:02.9]} 50... Kf5 {[%clk 0:00:04]} 51. e6 {[%clk
0:00:01.7]} 51... Nxe6 {[%clk 0:00:04.1]} 52. d7 {[%clk 0:00:01.7]} 52... Rd4
{[%clk 0:00:04.8]} 53. Nb6 {[%clk 0:00:01.5]} 53... Nc5 {[%clk 0:00:04.6]} 54.
Re8 {[%clk 0:00:01.3]} 54... Nxd7 {[%clk 0:00:04.5]} 55. Rd8 {[%clk 0:00:02]}
55... Rf4+ {[%clk 0:00:05.2]} 0-1

[Event "Early-Titled-Tuesday-Blitz-April-02-2024"]
[Site "Chess.com"]
[Date "2024.04.02"]
[Round "8"]
[White "Rawnsdale"]
[Black "Kopytkin"]
[Result "0-1"]
[WhiteElo "2524"]
[BlackElo "2416"]
[TimeControl "180+1"]
[EndTime "9:29:29 PDT"]
[Termination "Kopytkin won by resignation"]

1. e4 {[%clk 0:03:00.9]} 1... Nf6 {[%clk 0:02:58.2]} 2. e5 {[%clk 0:03:01]} 2...
Nd5 {[%clk 0:02:58]} 3. d4 {[%clk 0:03:01.8]} 3... d6 {[%clk 0:02:58.1]} 4. c4
{[%clk 0:03:02.4]} 4... Nb6 {[%clk 0:02:58.3]} 5. Nf3 {[%clk 0:03:03.3]} 5... g6
{[%clk 0:02:57.9]} 6. Nc3 {[%clk 0:03:02.8]} 6... Bg7 {[%clk 0:02:57]} 7. exd6
{[%clk 0:03:03.3]} 7... cxd6 {[%clk 0:02:57.2]} 8. Be2 {[%clk 0:03:03.7]} 8...
O-O {[%clk 0:02:57]} 9. O-O {[%clk 0:03:03.9]} 9... Bg4 {[%clk 0:02:57.7]} 10.
b3 {[%clk 0:03:03.8]} 10... d5 {[%clk 0:02:56.2]} 11. c5 {[%clk 0:03:03.3]}
11... Nc8 {[%clk 0:02:56.8]} 12. Bf4 {[%clk 0:02:57.2]} 12... Nc6 {[%clk
0:02:56.7]} 13. Ne5 {[%clk 0:02:50.7]} 13... Bxe2 {[%clk 0:02:45]} 14. Nxe2
{[%clk 0:02:51.6]} 14... f6 {[%clk 0:02:42.5]} 15. Nxc6 {[%clk 0:02:42.3]} 15...
bxc6 {[%clk 0:02:43.4]} 16. Rc1 {[%clk 0:02:34.3]} 16... e5 {[%clk 0:02:42.8]}
17. dxe5 {[%clk 0:02:34.7]} 17... fxe5 {[%clk 0:02:42.6]} 18. Bg3 {[%clk
0:02:35.6]} 18... Ne7 {[%clk 0:02:40.4]} 19. Re1 {[%clk 0:02:32.9]} 19... Nf5
{[%clk 0:02:23.8]} 20. b4 {[%clk 0:02:29.7]} 20... a6 {[%clk 0:02:22.1]} 21. a4
{[%clk 0:02:29.7]} 21... Rb8 {[%clk 0:02:21.1]} 22. Qd3 {[%clk 0:02:22.8]} 22...
Rxb4 {[%clk 0:02:13.5]} 23. Qxa6 {[%clk 0:02:20.8]} 23... Qa8 {[%clk 0:02:14.1]}
24. Qxa8 {[%clk 0:02:07]} 24... Rxa8 {[%clk 0:02:15]} 25. Nc3 {[%clk 0:02:03.6]}
25... Nxg3 {[%clk 0:01:56.2]} 26. hxg3 {[%clk 0:02:01.6]} 26... e4 {[%clk
0:01:56.5]} 27. Ne2 {[%clk 0:01:51.2]} 27... Raxa4 {[%clk 0:01:49.9]} 28. Nf4
{[%clk 0:01:51.2]} 28... Kf7 {[%clk 0:01:49]} 29. f3 {[%clk 0:01:47.8]} 29... e3
{[%clk 0:01:38.1]} 30. Kh2 {[%clk 0:01:30]} 30... d4 {[%clk 0:01:35.2]} 31. Rcd1
{[%clk 0:01:21.3]} 31... Ra5 {[%clk 0:01:29.3]} 32. Rb1 {[%clk 0:01:11]} 32...
Rab5 {[%clk 0:01:13.5]} 33. Ra1 {[%clk 0:01:08.3]} 33... Rb3 {[%clk 0:01:04.7]}
34. Ra7+ {[%clk 0:01:06.3]} 34... Rb7 {[%clk 0:01:04.8]} 35. Ra6 {[%clk
0:01:06]} 35... g5 {[%clk 0:01:05.2]} 36. Nh3 {[%clk 0:00:57.6]} 36... Rb1
{[%clk 0:00:54.9]} 37. Rxb1 {[%clk 0:00:30.8]} 37... Rxb1 {[%clk 0:00:53.7]} 38.
Rxc6 {[%clk 0:00:31]} 38... e2 {[%clk 0:00:30.8]} 39. Nxg5+ {[%clk 0:00:29.5]}
39... Kf8 {[%clk 0:00:27]} 40. Rc8+ {[%clk 0:00:13.2]} 40... Ke7 {[%clk
0:00:24.1]} 41. Rc7+ {[%clk 0:00:12.9]} 41... Ke8 {[%clk 0:00:18.2]} 42. Rxg7
{[%clk 0:00:06.9]} 42... e1=Q {[%clk 0:00:13.6]} 43. Kh3 {[%clk 0:00:07]} 43...
Qh1+ {[%clk 0:00:11.9]} 44. Kg4 {[%clk 0:00:07.2]} 44... h5+ {[%clk 0:00:12.3]}
45. Kf5 {[%clk 0:00:07.4]} 45... Re1 {[%clk 0:00:09.5]} 46. Rg8+ {[%clk
0:00:06.3]} 46... Kd7 {[%clk 0:00:09.6]} 47. Ne4 {[%clk 0:00:05.9]} 47... Rxe4
{[%clk 0:00:09.2]} 48. Kxe4 {[%clk 0:00:06.3]} 48... Qxg2 {[%clk 0:00:09.4]} 49.
Kxd4 {[%clk 0:00:04.4]} 49... Qxf3 {[%clk 0:00:08.8]} 50. Rg7+ {[%clk
0:00:04.4]} 50... Kc6 {[%clk 0:00:08.8]} 51. Rg6+ {[%clk 0:00:05]} 51... Kb5
{[%clk 0:00:09]} 52. Rb6+ {[%clk 0:00:05.3]} 52... Ka5 {[%clk 0:00:09.4]} 53.
Ke5 {[%clk 0:00:04.3]} 53... Qxg3+ {[%clk 0:00:09.5]} 54. Kd5 {[%clk 0:00:04.6]}
54... Qf3+ {[%clk 0:00:09.5]} 55. Kd6 {[%clk 0:00:04.8]} 55... h4 {[%clk
0:00:10.1]} 56. Rb7 {[%clk 0:00:03.5]} 56... Qxb7 {[%clk 0:00:09.6]} 57. c6
{[%clk 0:00:03.6]} 57... Qxc6+ {[%clk 0:00:09.5]} 58. Kxc6 {[%clk 0:00:04]}
58... h3 {[%clk 0:00:10]} 59. Kd5 {[%clk 0:00:04.9]} 59... h2 {[%clk 0:00:10.4]}
60. Ke4 {[%clk 0:00:05.8]} 60... h1=Q+ {[%clk 0:00:10.9]} 61. Kf4 {[%clk
0:00:06.1]} 61... Qh3 {[%clk 0:00:10.6]} 62. Kg5 {[%clk 0:00:06.5]} 62... Qh2
{[%clk 0:00:10.5]} 63. Kg6 {[%clk 0:00:07.4]} 63... Qe5 {[%clk 0:00:10.4]} 0-1

[Event "Early-Titled-Tuesday-Blitz-April-02-2024"]
[Site "Chess.com"]
[Date "2024.04.02"]
[Round "8"]
[White "vangulio"]
[Black "Kirill_Klukin"]
[Result "0-1"]
[WhiteElo "2562"]
[BlackElo "2807"]
[TimeControl "180+1"]
[EndTime "9:29:40 PDT"]
[Termination "Kirill_Klukin won by resignation"]

1. e4 {[%clk 0:03:00.9]} 1... c5 {[%clk 0:02:59.7]} 2. Nf3 {[%clk 0:02:59.4]}
2... Nc6 {[%clk 0:03:00.4]} 3. d4 {[%clk 0:02:59.1]} 3... cxd4 {[%clk
0:03:01.3]} 4. Nxd4 {[%clk 0:02:59.6]} 4... e5 {[%clk 0:03:02.1]} 5. Nb5 {[%clk
0:02:59.2]} 5... d6 {[%clk 0:03:02.6]} 6. c4 {[%clk 0:02:57]} 6... Be7 {[%clk
0:03:02.4]} 7. N1c3 {[%clk 0:02:56.6]} 7... a6 {[%clk 0:03:02.9]} 8. Na3 {[%clk
0:02:56]} 8... Be6 {[%clk 0:03:03.7]} 9. Be2 {[%clk 0:02:55.4]} 9... Bg5 {[%clk
0:03:03.3]} 10. O-O {[%clk 0:02:49]} 10... Bxc1 {[%clk 0:02:58.5]} 11. Rxc1
{[%clk 0:02:49.9]} 11... Nf6 {[%clk 0:02:58.3]} 12. Nc2 {[%clk 0:02:40]} 12...
O-O {[%clk 0:02:58.2]} 13. Qd2 {[%clk 0:02:40.5]} 13... Qb6 {[%clk 0:02:57.8]}
14. b4 {[%clk 0:02:28.3]} 14... Rfd8 {[%clk 0:02:50.2]} 15. Rfd1 {[%clk
0:02:20.5]} 15... h6 {[%clk 0:02:45.7]} 16. Nd5 {[%clk 0:02:12.3]} 16... Bxd5
{[%clk 0:02:33.5]} 17. exd5 {[%clk 0:02:13.2]} 17... Ne7 {[%clk 0:02:30.1]} 18.
Ne3 {[%clk 0:02:07]} 18... Rac8 {[%clk 0:02:27.9]} 19. a4 {[%clk 0:02:01.1]}
19... a5 {[%clk 0:02:23.8]} 20. c5 {[%clk 0:01:43.1]} 20... Qxb4 {[%clk
0:02:01]} 21. Qxb4 {[%clk 0:01:34.2]} 21... axb4 {[%clk 0:02:01.9]} 22. cxd6
{[%clk 0:01:17.7]} 22... Rxc1 {[%clk 0:02:02.8]} 23. Rxc1 {[%clk 0:01:16.5]}
23... Rxd6 {[%clk 0:02:03.2]} 24. Rc7 {[%clk 0:00:56.5]} 24... Nfxd5 {[%clk
0:01:54.8]} 25. Nxd5 {[%clk 0:00:54.1]} 25... Nxd5 {[%clk 0:01:55.4]} 26. Rxb7
{[%clk 0:00:53.9]} 26... Nc3 {[%clk 0:01:52.6]} 27. Bf1 {[%clk 0:00:38.7]} 27...
Rd1 {[%clk 0:01:26.8]} 28. f3 {[%clk 0:00:38.3]} 28... Nxa4 {[%clk 0:01:19.8]}
29. Rxb4 {[%clk 0:00:36.5]} 29... Nc3 {[%clk 0:01:20.4]} 30. Kf2 {[%clk
0:00:34.5]} 30... g6 {[%clk 0:01:18.1]} 31. Bc4 {[%clk 0:00:32.7]} 31... Rd4
{[%clk 0:01:12.8]} 32. Rb8+ {[%clk 0:00:27.3]} 32... Kg7 {[%clk 0:01:12.5]} 33.
Bb3 {[%clk 0:00:28.1]} 33... Rd7 {[%clk 0:00:57.6]} 34. Re8 {[%clk 0:00:26.9]}
34... Kf6 {[%clk 0:00:54.6]} 35. Rc8 {[%clk 0:00:26.6]} 35... Nb1 {[%clk
0:00:29.4]} 36. Rc6+ {[%clk 0:00:24.9]} 36... Ke7 {[%clk 0:00:28]} 37. Rc5
{[%clk 0:00:23.2]} 37... Kf6 {[%clk 0:00:26.9]} 38. Rc6+ {[%clk 0:00:22.8]}
38... Kg7 {[%clk 0:00:27.7]} 39. Rc5 {[%clk 0:00:22.8]} 39... Nd2 {[%clk
0:00:27.8]} 40. Bd5 {[%clk 0:00:21.4]} 40... Ra7 {[%clk 0:00:12.9]} 41. Ke3
{[%clk 0:00:20]} 41... Nb1 {[%clk 0:00:13.4]} 42. Be4 {[%clk 0:00:18.6]} 42...
Na3 {[%clk 0:00:14]} 43. Rxe5 {[%clk 0:00:18.3]} 43... Nc4+ {[%clk 0:00:14.3]}
44. Kd4 {[%clk 0:00:18.2]} 44... Nxe5 {[%clk 0:00:15.2]} 45. Kxe5 {[%clk
0:00:19]} 45... Ra2 {[%clk 0:00:15.5]} 46. f4 {[%clk 0:00:18.6]} 46... Ra5+
{[%clk 0:00:14.9]} 47. Kd4 {[%clk 0:00:18.5]} 47... f5 {[%clk 0:00:15.4]} 48.
Bf3 {[%clk 0:00:18.4]} 48... Kf6 {[%clk 0:00:16.1]} 49. g3 {[%clk 0:00:18.5]}
49... Ra4+ {[%clk 0:00:16.6]} 50. Ke3 {[%clk 0:00:18.8]} 50... Ra2 {[%clk
0:00:17.1]} 51. h4 {[%clk 0:00:18.7]} 51... Ke7 {[%clk 0:00:16.4]} 52. Bd5
{[%clk 0:00:19.1]} 52... Ra3+ {[%clk 0:00:16.5]} 53. Kf2 {[%clk 0:00:19.4]}
53... Ra7 {[%clk 0:00:16.1]} 54. Bc4 {[%clk 0:00:19.5]} 54... Kd6 {[%clk
0:00:15.6]} 55. Bd3 {[%clk 0:00:20]} 55... Kd5 {[%clk 0:00:13]} 56. h5 {[%clk
0:00:20.1]} 56... Kd4 {[%clk 0:00:13.7]} 57. Bb1 {[%clk 0:00:19.2]} 57... Ra1
{[%clk 0:00:10.7]} 58. Bc2 {[%clk 0:00:10.3]} 58... Ra2 {[%clk 0:00:10.8]} 59.
hxg6 {[%clk 0:00:11.2]} 59... Rxc2+ {[%clk 0:00:11.3]} 60. Kf3 {[%clk
0:00:12.1]} 60... Rc7 {[%clk 0:00:09.3]} 61. g4 {[%clk 0:00:11.9]} 61... Rc3+
{[%clk 0:00:10.1]} 62. Kg2 {[%clk 0:00:11.7]} 62... fxg4 {[%clk 0:00:10.6]} 63.
f5 {[%clk 0:00:10.2]} 63... Ke5 {[%clk 0:00:10.8]} 64. g7 {[%clk 0:00:11]} 64...
Rc8 {[%clk 0:00:11.2]} 65. f6 {[%clk 0:00:11.9]} 65... Kxf6 {[%clk 0:00:11.5]}
66. Kg3 {[%clk 0:00:12.1]} 66... Rg8 {[%clk 0:00:12.2]} 67. Kxg4 {[%clk
0:00:13]} 67... Kxg7 {[%clk 0:00:12.5]} 0-1

[Event "Early-Titled-Tuesday-Blitz-April-02-2024"]
[Site "Chess.com"]
[Date "2024.04.02"]
[Round "8"]
[White "GMthekingindian"]
[Black "Speed-O-Sonic"]
[Result "1/2-1/2"]
[WhiteElo "2237"]
[BlackElo "2440"]
[TimeControl "180+1"]
[EndTime "9:29:40 PDT"]
[Termination "Game drawn by agreement"]

1. e4 {[%clk 0:03:00.9]} 1... c6 {[%clk 0:02:59.2]} 2. c4 {[%clk 0:03:00.7]}
2... d5 {[%clk 0:03:00.1]} 3. cxd5 {[%clk 0:03:00.4]} 3... cxd5 {[%clk
0:02:58.7]} 4. exd5 {[%clk 0:03:01.3]} 4... Nf6 {[%clk 0:02:59.2]} 5. d4 {[%clk
0:02:59.5]} 5... g6 {[%clk 0:02:58.2]} 6. Bb5+ {[%clk 0:02:54.5]} 6... Nbd7
{[%clk 0:02:58.1]} 7. d6 {[%clk 0:02:50.6]} 7... exd6 {[%clk 0:02:51.5]} 8. Qe2+
{[%clk 0:02:46.8]} 8... Qe7 {[%clk 0:02:51.4]} 9. Bf4 {[%clk 0:02:46.7]} 9...
Nd5 {[%clk 0:02:49.4]} 10. Bg3 {[%clk 0:02:39.3]} 10... f5 {[%clk 0:02:41]} 11.
Nh3 {[%clk 0:02:27.9]} 11... a6 {[%clk 0:02:15.5]} 12. Qxe7+ {[%clk 0:01:42.5]}
12... Bxe7 {[%clk 0:02:12.7]} 13. Ba4 {[%clk 0:01:42.1]} 13... b5 {[%clk
0:02:11.2]} 14. Bb3 {[%clk 0:01:42.1]} 14... Bb7 {[%clk 0:02:11.9]} 15. Nc3
{[%clk 0:01:39.9]} 15... Nxc3 {[%clk 0:02:11.1]} 16. bxc3 {[%clk 0:01:39.7]}
16... Bxg2 {[%clk 0:02:11.4]} 17. Nf4 {[%clk 0:01:33.6]} 17... Bxh1 {[%clk
0:02:11.2]} 18. Ne6 {[%clk 0:01:33.9]} 18... Ra7 {[%clk 0:01:56]} 19. Kd2 {[%clk
0:01:32.2]} 19... Be4 {[%clk 0:01:41.9]} 20. Re1 {[%clk 0:01:31]} 20... Nb6
{[%clk 0:01:36.3]} 21. f3 {[%clk 0:01:29.2]} 21... Bd5 {[%clk 0:01:28]} 22. Bxd6
{[%clk 0:01:18.5]} 22... Bxb3 {[%clk 0:01:08.8]} 23. Nc7+ {[%clk 0:01:15.6]}
23... Rxc7 {[%clk 0:01:09.1]} 24. Bxc7 {[%clk 0:01:15]} 24... Nc4+ {[%clk
0:01:09.3]} 25. Kd3 {[%clk 0:00:54.1]} 25... Bxa2 {[%clk 0:01:07.7]} 26. Ra1
{[%clk 0:00:53.9]} 26... Bb3 {[%clk 0:01:07.5]} 27. Rxa6 {[%clk 0:00:53.2]}
27... Kf7 {[%clk 0:01:07]} 28. Ra7 {[%clk 0:00:49.7]} 28... Ba4 {[%clk
0:00:55.8]} 29. d5 {[%clk 0:00:47.7]} 29... Kf6 {[%clk 0:00:46.8]} 30. Ra6+
{[%clk 0:00:39.4]} 30... Kf7 {[%clk 0:00:36.8]} 31. Ra7 {[%clk 0:00:36.7]} 31...
Bc5 {[%clk 0:00:32.6]} 32. Bb6+ {[%clk 0:00:34.5]} 32... Be7 {[%clk 0:00:31.8]}
33. Bc5 {[%clk 0:00:35.4]} 33... Ne5+ {[%clk 0:00:22.6]} 34. Ke2 {[%clk
0:00:32.5]} 34... Re8 {[%clk 0:00:21.2]} 35. d6 {[%clk 0:00:32.8]} 35... Nc6
{[%clk 0:00:21.4]} 36. Rc7 {[%clk 0:00:31.5]} 36... Kf6 {[%clk 0:00:12]} 37.
Rxc6 {[%clk 0:00:27.6]} 37... Bxd6+ {[%clk 0:00:12.4]} 38. Kf2 {[%clk
0:00:25.9]} 38... Re6 {[%clk 0:00:11]} 39. Rxd6 {[%clk 0:00:20.6]} 39... Rxd6
{[%clk 0:00:11.5]} 40. Bxd6 {[%clk 0:00:21.5]} 40... Ke6 {[%clk 0:00:12.4]} 41.
Bc5 {[%clk 0:00:20]} 41... Kd5 {[%clk 0:00:13.2]} 42. Bb4 {[%clk 0:00:19]} 42...
Bd1 {[%clk 0:00:14.1]} 43. Ke3 {[%clk 0:00:18.9]} 43... g5 {[%clk 0:00:14.1]}
44. Be7 {[%clk 0:00:17.2]} 44... g4 {[%clk 0:00:14.2]} 45. fxg4 {[%clk 0:00:17]}
45... fxg4 {[%clk 0:00:15.1]} 46. Kf4 {[%clk 0:00:17.1]} 46... Ke6 {[%clk
0:00:12]} 47. Bf8 {[%clk 0:00:16.4]} 47... Kf7 {[%clk 0:00:11.9]} 48. Bc5 {[%clk
0:00:16.3]} 48... Ke6 {[%clk 0:00:12.8]} 49. Bd4 {[%clk 0:00:16.2]} 49... Kd5
{[%clk 0:00:13.7]} 50. Bg7 {[%clk 0:00:16.2]} 50... Kc4 {[%clk 0:00:14.6]} 51.
Kg3 {[%clk 0:00:15.6]} 51... Kd3 {[%clk 0:00:14.3]} 52. h3 {[%clk 0:00:15.6]}
52... h5 {[%clk 0:00:13.8]} 53. hxg4 {[%clk 0:00:15.5]} 53... hxg4 {[%clk
0:00:14.7]} 54. Bh8 {[%clk 0:00:16]} 54... Kc4 {[%clk 0:00:15.6]} 55. Bg7 {[%clk
0:00:16.3]} 55... Kd5 {[%clk 0:00:16.5]} 56. Bh8 {[%clk 0:00:16.9]} 56... Ke6
{[%clk 0:00:17.4]} 57. Bg7 {[%clk 0:00:17.4]} 57... Kf7 {[%clk 0:00:18.3]} 58.
Bd4 {[%clk 0:00:17.6]} 58... Ke8 {[%clk 0:00:19.2]} 59. Be5 {[%clk 0:00:18]}
59... Kd7 {[%clk 0:00:20.1]} 60. Bd4 {[%clk 0:00:18.4]} 60... Kc6 {[%clk
0:00:21]} 61. Bf6 {[%clk 0:00:18.7]} 61... Bf3 {[%clk 0:00:21.9]} 62. Bd4 {[%clk
0:00:18.4]} 62... Kb7 {[%clk 0:00:22.8]} 63. Bg7 {[%clk 0:00:18.8]} 63... Ka6
{[%clk 0:00:23.7]} 64. Bf6 {[%clk 0:00:19.2]} 64... Ka5 {[%clk 0:00:24.6]} 65.
Bg7 {[%clk 0:00:19.7]} 65... Ka4 {[%clk 0:00:25.5]} 66. Bf6 {[%clk 0:00:20]}
66... Kb3 {[%clk 0:00:26.4]} 67. Bg7 {[%clk 0:00:20.5]} 67... Kc4 {[%clk
0:00:27.3]} 68. Bf6 {[%clk 0:00:20.8]} 68... b4 {[%clk 0:00:28.2]} 69. cxb4
{[%clk 0:00:20.4]} 69... Kxb4 {[%clk 0:00:29.1]} 70. Bg5 {[%clk 0:00:20.9]}
70... Kc5 {[%clk 0:00:30]} 71. Bf4 {[%clk 0:00:21.5]} 71... Kd5 {[%clk
0:00:30.9]} 72. Bg5 {[%clk 0:00:22.4]} 72... Ke4 {[%clk 0:00:31.8]} 73. Bh4
{[%clk 0:00:23]} 73... Kd3 {[%clk 0:00:32.7]} 74. Bd8 {[%clk 0:00:23.4]} 74...
Ke4 {[%clk 0:00:33.6]} 75. Be7 {[%clk 0:00:24.2]} 75... Kd3 {[%clk 0:00:31.4]}
1/2-1/2